bitfinex-derivatives/quotes_SOLF0:USTF0_20241021
["timestamp","ask_amount","ask_price","bid_price","bid_amount"]
[1729512232683,4.44,166.64,166.54,1.50283024]
[1729512232882,3.0021,166.63,166.55,1.50282828]
[1729512233086,3.0021,166.63,166.53,5.6962]
[1729512233283,3.0021,166.63,166.54,1.50281825]
[1729512233484,3.0021,166.63,166.6,3.0025]
[1729512233785,4.22357107,166.65,166.53,5.6962]
[1729512233989,3.0019,166.64,166.54,3.90724854]
[1729512234178,3.0019,166.64,166.61,3.0022]
[1729512239995,3.002,166.63,166.61,3.0022]
[1729512243895,3.0018,166.64,166.61,3.0022]
[1729512244996,1.2506,166.68,166.57,4.44]
[1729512245199,3.0014,166.67,166.64,3.0018]
[1729512247989,5.6906,166.68,166.57,4.44]
[1729512249395,5.6906,166.68,166.57,5.8046]
[1729512249795,5.6906,166.68,166.58,1.5025905]
[1729512250092,5.6906,166.68,166.57,5.8046]
[1729512250093,3.0014,166.66,166.57,5.8046]
[1729512250295,1.2857,166.71,166.58,2.95498468]
[1729512250493,5.6657,166.71,166.69,3.0009]
[1729512250695,1.2857,166.71,166.63,4.38]
[1729512250897,1.2857,166.71,166.64,4.38]
[1729512251097,4.2862,166.71,166.67,3.0011]
[1729512251401,4.2862,166.71,166.64,4.38]
[1729512251797,4.2862,166.71,166.68,3.0011]
[1729512252412,66.244,166.74,166.64,4.38]
[1729512252605,5.744,166.74,166.65,1.3473]
[1729512253000,3.0004,166.72,166.67,3.0011]
[1729512253305,3.0004,166.72,166.65,1.3473]
[1729512253605,3.0004,166.72,166.68,3.0009]
[1729512254198,3.0004,166.72,166.65,1.3473]
[1729512254398,3.0004,166.72,166.69,3.0009]
[1729512254600,1.364,166.74,166.65,1.3473]
[1729512254904,1.3148,166.77,166.75,2.9997]
[1729512255205,4.3142,166.77,166.7,4.38]
[1729512255593,2.94611612,166.76,166.66,5.6272105]
[1729512255802,3.0001,166.74,166.66,2.5997]
[1729512257811,3.0001,166.74,166.69,3.0007]
[1729512258502,3.0005,166.71,166.67,3.0012]
[1729512259009,4.38,166.75,166.65,1.3473]
[1729512259501,3.0005,166.72,166.68,3.001]
[1729512259707,3.0005,166.72,166.65,1.3473]
[1729512260106,3.0005,166.72,166.67,3.0012]
[1729512260810,3.0005,166.71,166.67,3.0012]
[1729512261705,3.0005,166.71,166.65,1.3473]
[1729512261908,3.0005,166.71,166.68,3.0011]
[1729512264409,4.38,166.75,166.65,1.3473]
[1729512265604,3.0006,166.71,166.65,1.3473]
[1729512266005,3.0006,166.71,166.68,3.001]
[1729512266508,4.38,166.75,166.65,1.3473]
[1729512266708,3.0003,166.73,166.7,3.0007]
[1729512267508,1.3352,166.76,166.65,1.3473]
[1729512267705,1.3352,166.76,166.72,3.0002]
[1729512269011,2.9998,166.75,166.72,3.0002]
[1729512272305,3.0001,166.74,166.71,3.0005]
[1729512272511,4.36048424,166.76,166.66,4.38]
[1729512273412,3.0006,166.71,166.68,3.0009]
[1729512278426,3.0006,166.71,166.66,4.38]
[1729512278722,3.0006,166.71,166.69,3.0009]
[1729512280914,3.0006,166.71,166.68,3.001]
[1729512281722,3.0008,166.7,166.67,3.0011]
[1729512282919,3.0008,166.7,166.66,7.3813]
[1729512283115,4.38,166.74,166.66,7.3813]
[1729512283316,4.38,166.74,166.62,107.51301753]
[1729512283524,4.38,166.74,166.63,4.38]
[1729512284125,3.0012,166.68,166.65,3.0015]
[1729512299350,3.0022,166.62,166.59,4.3029]
[1729512299650,2.6476,166.67,166.57,4.38]
[1729512299838,3.04589718,166.66,166.57,4.38]
[1729512300038,3.0016,166.65,166.61,3.0022]
[1729512300247,6.04659603,166.65,166.61,3.0022]
[1729512300447,3.0016,166.65,166.61,3.0022]
[1729512300844,5.93695575,166.65,166.61,3.0022]
[1729512301445,3.0016,166.65,166.61,3.0022]
[1729512301645,5.96399034,166.65,166.61,3.0022]
[1729512301846,5.96399034,166.65,166.57,4.38]
[1729512301847,5.6489,166.67,166.63,3.0018]
[1729512302052,5.6489,166.67,166.57,7.33126112]
[1729512302246,4.38,166.68,166.57,7.33126112]
[1729512302552,3.0009,166.69,166.66,3.0014]
[1729512302748,2.5062,166.73,166.62,4.38]
[1729512303256,2.5062,166.73,166.63,2.8581777]
[1729512303551,2.5062,166.73,166.7,3.0005]
[1729512303749,2.5062,166.73,166.67,4.38]
[1729512303957,7.40528424,166.76,166.67,4.38]
[1729512304248,4.38,166.76,166.67,4.38]
[1729512304851,2.9998,166.76,166.72,3.0003]
[1729512305051,7.45595807,166.77,166.72,3.0003]
[1729512306448,7.45595807,166.77,166.67,4.38]
[1729512306653,3.0,166.75,166.71,3.0004]
[1729512307756,3.0,166.75,166.72,3.0003]
[1729512312656,7.45595807,166.77,166.67,4.38]
[1729512312859,3.0,166.74,166.71,3.0005]
[1729512313750,7.45595807,166.77,166.67,4.38]
[1729512314057,3.0,166.74,166.67,4.38]
[1729512314855,3.0,166.74,166.71,3.0004]
[1729512316758,7.45595807,166.77,166.67,4.38]
[1729512316954,3.0001,166.74,166.7,3.0006]
[1729512317159,3.0001,166.74,166.67,4.38]
[1729512317661,3.0001,166.74,166.71,3.0004]
[1729512324559,3.0004,166.72,166.67,4.38]
[1729512324768,7.45595807,166.77,166.67,4.38]
[1729512325065,2.5158,166.76,166.67,4.38]
[1729512325564,3.0002,166.73,166.67,4.38]
[1729512325764,2.5158,166.76,166.67,4.38]
[1729512326162,3.0,166.74,166.71,3.0005]
[1729512327672,2.5158,166.76,166.63,103.76361592]
[1729512327865,2.5158,166.76,166.68,3.0009]
[1729512328167,2.5158,166.76,166.64,4.36]
[1729512328361,3.0008,166.7,166.64,4.36]
[1729512328764,4.36,166.72,166.64,4.36]
[1729512328966,4.36,166.72,166.66,3.0013]
[1729512328967,3.0009,166.7,166.66,3.0013]
[1729512331067,4.36,166.72,166.64,4.36]
[1729512331272,4.36,166.72,166.66,3.0013]
[1729512331479,8.1278,166.76,166.64,4.36]
[1729512332272,3.0003,166.73,166.64,4.36]
[1729512332772,3.0003,166.73,166.65,1.5020618]
[1729512332970,3.0003,166.73,166.7,3.0007]
[1729512344277,4.36,166.75,166.63,1.356]
[1729512344482,5.6491,166.75,166.63,1.356]
[1729512344873,3.0007,166.71,166.67,3.0011]
[1729512346379,5.6491,166.75,166.67,3.0011]
[1729512347679,3.0007,166.7,166.67,3.0011]
[1729512350981,5.6491,166.75,166.66,3.0014]
[1729512351180,5.6491,166.75,166.63,1.356]
[1729512351985,3.0008,166.7,166.63,1.356]
[1729512352980,3.0008,166.7,166.67,3.0012]
[1729512353771,3.001,166.69,166.66,3.0014]
[1729512353973,2.99074725,166.68,166.66,3.0014]
[1729512354172,2.99074725,166.68,166.59,67.3933]
[1729512354377,3.0015,166.66,166.63,3.0019]
[1729512354582,3.07214652,166.65,166.6,4.36]
[1729512354782,3.0015,166.66,166.6,4.36]
[1729512355178,3.02619047,166.65,166.63,3.0018]
[1729512355485,3.0015,166.66,166.59,4.36]
[1729512355486,4.36,166.66,166.59,4.36]
[1729512355885,7.36967032,166.66,166.59,4.36]
[1729512356089,3.0018,166.65,166.62,3.0021]
[1729512357286,4.36,166.66,166.64,3.0017]
[1729512357483,4.36,166.66,166.59,4.36]
[1729512357884,2.97872585,166.67,166.6,1.50253855]
[1729512358080,6.9221,166.69,166.59,4.36]
[1729512358285,6.9221,166.69,166.6,1.50253832]
[1729512358486,6.9221,166.69,166.59,4.36]
[1729512358686,3.0013,166.67,166.64,3.0017]
[1729512358991,6.9221,166.69,166.59,4.36]
[1729512358992,2.5621,166.69,166.59,4.36]
[1729512359191,2.5621,166.69,166.67,3.0012]
[1729512359391,4.36,166.71,166.59,6.9537]
[1729512359688,4.36,166.71,166.6,6.91058997]
[1729512359888,4.36,166.71,166.61,3.90605114]
[1729512360084,4.36,166.71,166.62,1.50232736]
[1729512360283,4.36,166.71,166.63,4.36]
[1729512361196,4.36,166.71,166.62,4.36]
[1729512361400,3.0016,166.66,166.63,3.0019]
[1729512361607,3.02925758,166.67,166.6,4.36]
[1729512361904,4.36,166.71,166.6,4.36]
[1729512362298,3.0012,166.67,166.64,3.0016]
[1729512362897,3.0011,166.68,166.64,3.0016]
[1729512364197,5.93301985,166.68,166.64,3.0016]
[1729512365405,3.0013,166.67,166.64,3.0016]
[1729512366505,3.0013,166.67,166.6,4.36]
[1729512366699,3.0013,166.67,166.65,3.0016]
[1729512366907,2.93191985,166.68,166.65,3.0016]
[1729512367101,3.0011,166.68,166.65,3.0016]
[1729512367307,6.02783573,166.68,166.65,3.0016]
[1729512367603,6.02783573,166.68,166.66,3.0014]
[1729512368002,7.3606,166.71,166.6,4.36]
[1729512368208,7.3606,166.71,166.68,3.001]
[1729512371408,3.0006,166.71,166.68,3.001]
[1729512376211,3.0007,166.7,166.68,3.001]
[1729512377709,3.0007,166.7,166.6,4.36]
[1729512377913,3.0007,166.7,166.67,3.0012]
[1729512382111,2.5826,166.74,166.64,4.38]
[1729512382320,6.9626,166.74,166.65,1.2326]
[1729512382515,3.0003,166.73,166.7,3.0005]
[1729512382711,6.9626,166.74,166.7,3.0005]
[1729512383921,3.0004,166.72,166.7,3.0005]
[1729512384817,3.0004,166.72,166.69,3.0008]
[1729512389420,5.5827,166.74,166.72,3.0003]
[1729512389713,3.0001,166.74,166.65,1.2326]
[1729512390116,3.0001,166.74,166.71,3.0005]
[1729512390517,3.0002,166.73,166.71,3.0005]
[1729512390716,4.38,166.76,166.71,3.0005]
[1729512391118,3.0001,166.74,166.71,3.0005]
[1729512392725,2.9999,166.75,166.72,3.0002]
[1729512392918,2.9999,166.75,166.68,4.38]
[1729512393320,2.9999,166.75,166.72,3.0002]
[1729512394819,79.83073787,166.77,166.68,4.38]
[1729512395121,7.31638047,166.86,166.69,1.50175466]
[1729512395317,2.9987,166.81,166.78,2.9992]
[1729512410029,2.9991,166.8,166.74,4.36]
[1729512410224,4.38,166.84,166.71,1.3032]
[1729512410433,4.38,166.84,166.72,4.36]
[1729512410927,2.9993,166.78,166.75,2.9997]
[1729512411123,4.38,166.84,166.71,1.3032]
[1729512411329,2.9997,166.76,166.73,3.0]
[1729512411529,5.98036625,166.76,166.73,3.0]
[1729512412335,2.9997,166.76,166.73,3.0]
[1729512412536,2.9994,166.78,166.75,2.9997]
[1729512412927,4.36,166.79,166.75,2.9997]
[1729512413735,2.9993,166.78,166.75,2.9997]
[1729512417232,4.36,166.79,166.7,102.81264022]
[1729512417436,4.36,166.79,166.69,4.36]
[1729512417437,3.0,166.74,166.69,4.36]
[1729512417634,2.9583838,166.75,166.69,4.36]
[1729512417830,4.36,166.79,166.69,4.36]
[1729512418137,2.9998,166.75,166.72,3.0002]
[1729512418332,5.97217379,166.75,166.72,3.0002]
[1729512420031,2.93638047,166.86,166.65,1.298]
[1729512420032,4.36,166.88,166.73,4.36]
[1729512420242,2.6727,166.85,166.74,4.36]
[1729512420439,2.6727,166.85,166.75,4.36]
[1729512420639,2.9985,166.82,166.77,2.9993]
[1729512421036,2.9985,166.82,166.75,4.36]
[1729512421231,2.9985,166.82,166.77,2.9994]
[1729512421832,2.9985,166.82,166.78,2.9992]
[1729512423141,2.6727,166.85,166.75,4.36]
[1729512423338,2.9988,166.81,166.77,2.9994]
[1729512425940,4.36,166.84,166.74,4.36]
[1729512426541,4.36,166.84,166.79,2.9989]
[1729512426542,2.9984,166.83,166.79,2.9989]
[1729512426936,2.6727,166.85,166.78,4.36]
[1729512427735,2.9982,166.84,166.81,2.9986]
[1729512431449,5.6708,166.85,166.82,2.9985]
[1729512432657,4.36,166.87,166.83,2.9982]
[1729512432658,2.9979,166.86,166.83,2.9982]
[1729512432947,2.9979,166.86,166.78,4.36]
[1729512433847,2.9979,166.86,166.83,2.9983]
[1729512438954,2.9975,166.88,166.78,4.36]
[1729512439257,2.9975,166.88,166.79,1.2647]
[1729512439450,6.04227393,166.88,166.79,1.2647]
[1729512439958,6.04227393,166.88,166.85,2.9979]
[1729512440256,2.9975,166.88,166.85,2.9979]
[1729512440550,5.92373602,166.88,166.85,2.9979]
[1729512442750,2.9975,166.88,166.85,2.9979]
[1729512443153,6.05680079,166.88,166.85,2.9979]
[1729512445264,2.9975,166.88,166.85,2.9979]
[1729512445564,5.97589307,166.88,166.85,2.9979]
[1729512446663,2.9975,166.88,166.85,2.9979]
[1729512447368,5.94318326,166.88,166.85,2.9979]
[1729512453875,5.94318326,166.88,166.83,2.9983]
[1729512453876,2.9979,166.86,166.83,2.9983]
[1729512460371,2.9979,166.86,166.84,2.9982]
[1729512463372,2.998,166.85,166.82,2.9984]
[1729512464471,2.998,166.85,166.83,2.9984]
[1729512466577,2.998,166.86,166.83,2.9984]
[1729512467171,2.998,166.85,166.83,2.9984]
[1729512472685,2.9979,166.86,166.83,2.9984]
[1729512474781,2.9977,166.87,166.78,111.53907564]
[1729512474982,4.36,166.89,166.78,111.53907564]
[1729512475187,2.98475473,166.89,166.78,111.53907564]
[1729512475381,2.574,166.9,166.78,111.53907564]
[1729512475382,2.9976,166.88,166.84,2.9981]
[1729512475680,2.9976,166.88,166.78,111.53907564]
[1729512475681,5.92923774,166.88,166.78,111.53907564]
[1729512475887,2.93163774,166.88,166.78,111.53907564]
[1729512476084,9.9312,166.9,166.87,2.9976]
[1729512476282,5.5712,166.9,166.87,2.9976]
[1729512476474,2.96141443,166.9,166.82,4.36]
[1729512476680,2.997,166.91,166.88,2.9974]
[1729512476879,3.01542199,166.9,166.88,2.9974]
[1729512478186,2.997,166.91,166.88,2.9974]
[1729512478486,2.92900989,166.9,166.88,2.9974]
[1729512478684,2.9968,166.92,166.89,2.9972]
[1729512478980,6.01342215,166.92,166.89,2.9972]
[1729512479186,2.9968,166.92,166.89,2.9972]
[1729512479687,3.03102417,166.91,166.83,1.3174]
[1729512479891,2.997,166.91,166.88,2.9974]
[1729512480084,2.99993971,166.9,166.88,2.9974]
[1729512480387,2.997,166.91,166.88,2.9974]
[1729512480890,6.05905089,166.91,166.88,2.9974]
[1729512481186,5.92492676,166.91,166.88,2.9974]
[1729512483283,5.92492676,166.91,166.83,1.3174]
[1729512483493,2.997,166.91,166.83,1.3174]
[1729512484185,2.997,166.91,166.89,2.9973]
[1729512484492,2.94845363,166.92,166.86,4.36]
[1729512485789,2.9964,166.94,166.91,2.9969]
[1729512485994,4.36,166.96,166.86,4.36]
[1729512486291,3.9336,167.01,166.86,4.36]
[1729512486484,8.2936,167.01,166.86,4.36]
[1729512487292,2.9956,166.99,166.95,2.9962]
[1729512488196,2.9957,166.98,166.95,2.9962]
[1729512489098,4.36,167.01,166.91,4.36]
[1729512489298,2.996,166.97,166.94,2.9964]
[1729512491693,4.36,167.01,166.91,4.36]
[1729512491900,2.9957,166.98,166.95,2.9962]
[1729512497094,2.9957,166.98,166.96,2.996]
[1729512500696,2.9957,166.98,166.95,2.9961]
[1729512503904,7.3555,167.0,166.96,2.9959]
[1729512504113,2.588,167.03,166.92,1.2772]
[1729512504409,4.36,167.02,166.92,1.2772]
[1729512504703,2.588,167.03,166.92,1.2772]
[1729512504911,2.588,167.03,166.93,2.6072]
[1729512505305,2.588,167.03,166.92,1.2772]
[1729512505609,2.588,167.03,166.93,4.36]
[1729512506900,2.9956,166.99,166.96,2.996]
[1729512507613,2.9954,167.0,166.97,2.9957]
[1729512509717,2.9953,167.01,166.98,2.9956]
[1729512510013,1.2936,167.03,166.93,4.36]
[1729512510618,3.03392917,167.04,166.93,4.36]
[1729512510819,2.995,167.02,166.99,2.9954]
[1729512511511,2.995,167.02,167.0,2.9953]
[1729512511715,2.9948,167.03,167.0,2.9953]
[1729512511910,4.36,167.06,166.97,4.36]
[1729512512107,2.5877,167.09,167.0,2.9952]
[1729512512318,2.9947,167.04,166.97,4.36]
[1729512512523,4.36,167.08,166.97,4.36]
[1729512512714,7.32174622,167.08,166.97,4.36]
[1729512513218,2.9946,167.05,166.97,4.36]
[1729512514019,2.9946,167.05,167.02,2.9949]
[1729512515319,2.9944,167.05,166.98,1.3209]
[1729512516213,7.32174622,167.08,166.98,1.3209]
[1729512516412,2.9944,167.05,166.98,1.3209]
[1729512516609,7.32174622,167.08,166.98,1.3209]
[1729512516814,7.32174622,167.08,167.01,2.9951]
[1729512517812,2.9948,167.04,167.01,2.9951]
[1729512524136,7.32174622,167.08,166.98,1.3209]
[1729512524433,2.9945,167.05,167.02,2.9948]
[1729512525729,2.9947,167.04,167.01,2.9951]
[1729512526130,2.9947,167.04,166.98,1.3209]
[1729512527039,2.9947,167.04,167.01,2.995]
[1729512530139,6.61624463,167.18,167.01,4.36]
[1729512530336,2.5461,167.17,167.02,2.6253]
[1729512530739,2.5461,167.17,167.09,2.9936]
[1729512530740,2.9932,167.12,167.09,2.9936]
[1729512531036,2.5461,167.17,167.09,2.9936]
[1729512531241,216.42305443,167.19,167.07,4.36]
[1729512531437,2.5517,167.18,167.07,4.36]
[1729512532134,2.9924,167.17,167.12,2.993]
[1729512532336,6.9117,167.18,167.12,2.993]
[1729512533444,2.5517,167.18,167.12,2.993]
[1729512533642,2.9926,167.16,167.12,2.993]
[1729512533943,2.9926,167.16,167.13,2.993]
[1729512534332,2.5517,167.18,167.08,1.3249]
[1729512534537,2.9923,167.17,167.13,2.9929]
[1729512535343,2.9925,167.16,167.13,2.9929]
[1729512535539,2.5517,167.18,167.11,2.9933]
[1729512535941,2.9926,167.15,167.11,2.9933]
[1729512536945,2.9926,167.15,167.12,2.9932]
[1729512539047,2.9926,167.16,167.12,2.9932]
[1729512539246,2.5517,167.18,167.12,2.9932]
[1729512539744,2.9926,167.16,167.12,2.9932]
[1729512540449,2.9927,167.15,167.11,2.9932]
[1729512540952,2.9927,167.15,167.1,4.34]
[1729512541250,2.9925,167.16,167.13,2.993]
[1729512541452,2.9925,167.16,167.1,4.34]
[1729512541849,2.9925,167.16,167.13,2.993]
[1729512543946,3.8602,167.24,167.1,4.34]
[1729512544152,4.34,167.23,167.1,4.34]
[1729512544546,2.992,167.19,167.15,2.9924]
[1729512544950,4.34,167.23,167.15,2.9924]
[1729512545147,2.9921,167.18,167.15,2.9924]
[1729512545548,2.9919,167.2,167.16,2.9923]
[1729512545954,2.9919,167.2,167.14,4.34]
[1729512546450,2.9919,167.2,167.16,2.9923]
[1729512547654,2.9919,167.2,167.14,4.34]
[1729512547854,2.9919,167.2,167.17,2.9922]
[1729512549058,2.9922,167.18,167.15,2.9926]
[1729512549358,4.34,167.23,167.08,1.3249]
[1729512549546,4.34,167.23,167.09,4.34]
[1729512549749,4.34,167.23,167.13,2.9928]
[1729512550257,2.9924,167.17,167.14,2.9928]
[1729512551254,4.34,167.23,167.09,4.34]
[1729512551455,2.9922,167.18,167.14,2.9927]
[1729512552453,2.9923,167.18,167.14,2.9927]
[1729512552659,2.9923,167.18,167.15,2.9925]
[1729512555056,2.99886345,167.24,167.13,4.34]
[1729512555257,2.5499,167.24,167.13,4.34]
[1729512555561,5.59381894,167.24,167.13,4.34]
[1729512555862,2.9914,167.22,167.18,2.992]
[1729512556162,2.5499,167.24,167.17,4.34]
[1729512556367,2.5499,167.24,167.19,2.9919]
[1729512556655,4.34,167.23,167.09,1.2544]
[1729512556859,2.9921,167.18,167.14,2.9928]
[1729512557765,2.992,167.19,167.15,2.9926]
[1729512560356,2.9921,167.18,167.15,2.9926]
[1729512561557,1.3294,167.22,167.1,4.34]
[1729512561763,2.9924,167.17,167.1,4.34]
[1729512562364,2.9924,167.17,167.14,2.9928]
[1729512565266,2.9926,167.16,167.13,2.9929]
[1729512567168,22.33,167.2,167.08,105.96313235]
[1729512567367,1.3286,167.15,167.1,2.9934]
[1729512567567,3.05697748,167.14,167.1,2.9934]
[1729512567770,2.9933,167.12,167.09,2.9937]
[1729512572269,1.2714,167.14,167.02,1.3029]
[1729512572567,2.9935,167.11,167.08,2.9939]
[1729512574977,2.9935,167.1,167.07,2.9939]
[1729512575171,2.93066071,167.12,167.05,4.34]
[1729512575366,1.2714,167.14,167.05,4.34]
[1729512575675,4.32851662,167.14,167.05,4.34]
[1729512575873,1.3286,167.15,167.05,4.34]
[1729512576274,4.3213,167.15,167.08,2.9939]
[1729512576575,4.35784838,167.15,167.02,5.6429]
[1729512576968,2.9933,167.12,167.09,2.9937]
[1729512577466,2.9934,167.11,167.08,2.9938]
[1729512580970,2.9932,167.12,167.08,2.9938]
[1729512583582,7.3332,167.12,167.08,2.9938]
[1729512585079,2.9932,167.12,167.08,2.9938]
[1729512586275,2.9932,167.12,167.02,5.6429]
[1729512588178,2.9932,167.12,167.09,2.9936]
[1729512595986,2.9935,167.11,167.08,2.9938]
[1729512596183,4.34,167.13,167.08,2.9938]
[1729512597187,2.9934,167.11,167.08,2.9938]
[1729512597480,4.34,167.13,167.02,5.6429]
[1729512597681,2.9934,167.11,167.08,2.9938]
[1729512597879,4.34,167.13,167.03,4.34]
[1729512598887,2.9935,167.1,167.07,2.994]
[1729512601390,2.9938,167.09,167.06,2.9942]
[1729512603690,2.9936,167.1,167.06,2.9942]
[1729512604293,2.9937,167.09,167.06,2.9942]
[1729512604984,2.9934,167.11,167.05,2.9944]
[1729512605183,2.9934,167.11,167.02,5.6429]
[1729512605587,2.9934,167.11,167.07,2.9939]
[1729512605788,2.9936,167.1,167.07,2.9939]
[1729512607988,6.02194838,167.15,167.11,2.9932]
[1729512608192,3.02924838,167.15,167.11,2.9932]
[1729512608397,4.34,167.16,167.11,2.9932]
[1729512609098,7.37026549,167.16,167.11,2.9932]
[1729512609491,7.37026549,167.16,167.06,4.34]
[1729512609689,7.37026549,167.16,167.09,2.9936]
[1729512610397,2.9932,167.12,167.09,2.9936]
[1729512610799,2.9931,167.13,167.09,2.9936]
[1729512611597,2.94217115,167.12,167.09,2.9936]
[1729512611904,2.9933,167.12,167.09,2.9936]
[1729512612296,6.04423536,167.12,167.09,2.9936]
[1729512612499,2.9933,167.11,167.08,2.9938]
[1729512612801,4.34,167.14,167.02,1.3029]
[1729512612997,4.34,167.14,167.03,4.34]
[1729512613303,2.9935,167.1,167.06,2.9942]
[1729512613505,2.9935,167.1,167.03,4.34]
[1729512614302,2.9935,167.1,167.07,2.994]
[1729512614505,2.9935,167.1,167.03,4.34]
[1729512616103,2.9935,167.1,167.07,2.9939]
[1729512620511,25.252702,167.14,167.03,4.34]
[1729512620707,1.2576,167.13,167.0,102.91433585]
[1729512621105,1.2576,167.13,167.04,2.9944]
[1729512622006,2.9942,167.07,167.04,2.9944]
[1729512625613,2.9944,167.06,167.01,2.995]
[1729512625909,2.9944,167.06,166.99,4.34]
[1729512626713,4.34,167.08,167.03,2.9947]
[1729512626915,2.9941,167.07,167.03,2.9947]
[1729512628301,2.9947,167.04,166.97,3.06208818]
[1729512628515,2.9947,167.04,166.98,4.34]
[1729512628710,4.34,167.08,166.98,4.34]
[1729512629109,2.9945,167.05,167.01,2.9951]
[1729512629311,2.94593193,167.04,166.98,4.34]
[1729512629718,2.9946,167.04,167.01,2.995]
[1729512629911,2.9552232,167.04,167.01,2.995]
[1729512630115,4.34,167.08,167.01,2.995]
[1729512630317,2.9945,167.05,167.01,2.995]
[1729512630516,3.00497645,167.04,167.01,2.995]
[1729512630912,3.00497645,167.04,167.02,2.9949]
[1729512631222,4.34,167.08,166.98,4.34]
[1729512631410,2.9942,167.07,167.03,2.9947]
[1729512631606,4.34,167.08,167.03,2.9947]
[1729512633020,2.9943,167.06,167.03,2.9947]
[1729512633214,3.0536025,167.05,167.03,2.9947]
[1729512633413,3.0536025,167.05,167.02,2.9948]
[1729512633616,3.0536025,167.05,166.98,4.34]
[1729512633820,4.34,167.08,166.98,4.34]
[1729512634126,2.9943,167.06,167.02,2.9949]
[1729512634428,2.96006981,167.05,167.02,2.9949]
[1729512635718,2.9944,167.05,167.02,2.9949]
[1729512635919,6.06269193,167.05,167.02,2.9949]
[1729512636119,2.9944,167.05,167.02,2.9949]
[1729512636319,2.9943,167.06,166.98,4.34]
[1729512636517,3.03111868,167.05,166.98,4.34]
[1729512637316,3.03111868,167.05,167.02,2.9948]
[1729512638126,4.34,167.07,166.97,7.40208818]
[1729512640627,4.34,167.07,167.02,2.9949]
[1729512640628,2.9945,167.05,167.02,2.9949]
[1729512640817,2.928,167.04,167.02,2.9949]
[1729512641923,2.9945,167.05,167.02,2.9949]
[1729512642323,3.01810904,167.04,167.02,2.9949]
[1729512646023,2.9945,167.05,167.02,2.9949]
[1729512646418,3.04071178,167.04,167.02,2.9949]
[1729512651927,3.04071178,167.04,166.98,4.34]
[1729512651928,3.04071178,167.04,167.03,2.9948]
[1729512652122,4.34,167.07,167.03,2.9948]
[1729512652524,2.9944,167.06,167.03,2.9948]
[1729512653222,2.9944,167.06,167.02,2.9949]
[1729512654129,2.9944,167.05,167.02,2.9949]
[1729512656429,3.0002409,167.04,167.02,2.9949]
[1729512660533,3.0002409,167.04,166.98,4.34]
[1729512660730,2.9943,167.06,166.98,4.34]
[1729512661127,2.9944,167.05,167.02,2.9948]
[1729512661527,6.02849508,167.05,167.0,2.9952]
[1729512661833,4.34,167.07,166.98,4.34]
[1729512662023,7.2645782,167.07,166.98,4.34]
[1729512662538,2.9947,167.04,167.01,2.995]
[1729512662732,2.99982104,167.03,167.01,2.995]
[1729512679251,69.43780675,167.24,166.98,4.34]
[1729512679544,4.34,167.13,166.99,8.23722937]
[1729512679748,5.6196,167.14,167.1,2.9934]
[1729512679946,9.9596,167.14,167.1,2.9934]
[1729512680143,6.9667,167.14,167.05,4.34]
[1729512680349,1.2667,167.13,167.07,2.9939]
[1729512681648,1.2667,167.13,167.07,2.994]
[1729512681847,6.9667,167.14,167.05,4.34]